[Event "EWIRCC 2019"]
[Site "Monte-Carlo"]
[Date "2019.11.30"]
[Round "4.1"]
[White "Zhukova, Natalia"]
[Black "Bulmaga, Irina"]
[Result "1/2-1/2"]
[ECO "A28"]
[WhiteElo "2323"]
[BlackElo "2435"]
[Annotator "NA"]
[PlyCount "114"]
[EventDate "2019.11.28"]
[EventType "swiss"]
[EventCountry "MNC"]
[SourceTitle "playchess.com"]
[Source "ChessBase"]
[SourceQuality "1"]
[TimeControl "5400+30"]

1. c4 {[%emt 1:15:12]} Nf6 {[%emt 1:15:13]} 2. Nc3 {[%emt 0:00:22]} e5 {[%emt 0:00:25]} 3. Nf3 {[%emt 0:00:22]} Nc6 {[%emt 0:00:21]} 4. e4 {[%emt 0:00:23]} Bb4 {[%emt 0:00:47]} 5. d3 {[%emt 0:00:22]} d6 {[%emt 0:00:31]} 6. Be2 {[%emt 0:00:26]} O-O {[%emt 0:00:33]} 7. O-O {[%emt 0:00:24]} a5 {[%emt 0:00:35]} 8. Bg5 {[%emt 0:01:48]} Bxc3 {[%emt 0:00:22]} 9. bxc3 {[%emt 0:00:22]} h6 {[%emt 0:00:28]} 10. Bd2 {[%emt 0:01:07]} Nh7 {[%emt 0:00:49]} 11. Ne1 {[%emt 0:01:06]} f5 {[%emt 0:00:43]} 12. exf5 {[%emt 0:00:34]} Bxf5 {[%emt 0:00:22]} 13. Nc2 {[%emt 0:02:52]} Qd7 {[%emt 0:00:54]} 14. Ne3 {[%emt 0:00:29]} Be6 {[%emt 0:00:30]} 15. Nd5 {[%emt 0:01:03]} Ne7 {[%emt 0:01:33]} 16. Nxe7+ {[%emt 0:02:27]} Qxe7 {[%emt 0:00:22]} 17. f4 {[%emt 0:00:35]} exf4 {[%emt 0:01:16]} 18. Bxf4 {[%emt 0:00:38]} Rae8 {[%emt 0:00:46]} 19. Bh5 {[%emt 0:00:46]} Bf7 {[%emt 0:00:24]} 20. Bf3 {[%emt 0:03:49]} c6 {[%emt 0:03:17]} 21. Qd2 {[%emt 0:00:25]} g5 {[%emt 0:00:50]} 22. Rae1 {[%emt 0:00:41]} Qd7 {[%emt 0:00:38]} 23. Be3 {[%emt 0:01:26]} Bg6 {[%emt 0:00:43]} 24. Bd4 {[%emt 0:00:56]} c5 {[%emt 0:03:09]} 25. Bd5+ {[%emt 0:01:50]} Bf7 {[%emt 0:00:34]} 26. Rxf7 {[%emt 0:02:09]} Rxf7 {[%emt 0:00:23]} 27. Rxe8+ {[%emt 0:00:27]} Qxe8 {[%emt 0:00:23]} 28. Bf2 {[%emt 0:00:24]} Nf6 {[%emt 0:00:41]} 29. Bxf7+ {[%emt 0:00:21]} Kxf7 {[%emt 0:00:35]} 30. Bg3 {[%emt 0:00:31]} Qe7 {[%emt 0:01:06]} 31. h3 {[%emt 0:00:23]} Kg7 {[%emt 0:00:48]} 32. Qd1 {[%emt 0:00:33]} Nd7 {[%emt 0:01:49]} 33. Qf3 {[%emt 0:00:30]} Ne5 {[%emt 0:01:10]} 34. Qd5 {[%emt 0:00:36]} Nf7 {[%emt 0:00:29]} 35. Qf3 {[%emt 0:00:47]} b6 {[%emt 0:00:29]} 36. Kh2 {[%emt 0:00:30]} Qf6 {[%emt 0:00:39]} 37. Qc6 {[%emt 0:00:32]} Qxc3 {[%emt 0:00:32]} 38. Bxd6 {[%emt 0:00:21]} Qxd3 {[%emt 0:01:18]} 39. Bg3 {[%emt 0:00:42]} Qxc4 {[%emt 0:00:59]} 40. Qxb6 {[%emt 0:00:21]} a4 {[%emt 0:00:34]} 41. a3 {[%emt 0:00:44]} Qd4 {[%emt 0:00:27]} 42. Qc6 {[%emt 0:00:30]} h5 {[%emt 0:00:31]} 43. Qf3 {[%emt 0:00:28]} h4 {[%emt 0:00:30]} 44. Bc7 {[%emt 0:00:32]} c4 {[%emt 0:00:46]} 45. Qc6 {[%emt 0:00:31]} c3 {[%emt 0:00:39]} 46. Bb6 {[%emt 0:00:32]} Qf4+ {[%emt 0:01:18]} 47. Kg1 {[%emt 0:00:27]} Qc1+ {[%emt 0:00:31]} 48. Kh2 {[%emt 0:00:21]} Qd2 {[%emt 0:00:33]} 49. Ba5 {[%emt 0:00:35]} Qf4+ {[%emt 0:00:56]} 50. Kh1 {[%emt 0:00:25]} Qc1+ {[%emt 0:00:33]} 51. Kh2 {[%emt 0:00:20]} Qf4+ {[%emt 0:00:28]} 52. Kh1 {[%emt 0:00:21]} Ne5 {[%emt 0:00:34]} 53. Bxc3 {[%emt 0:00:34]} Qf1+ {[%emt 0:00:21]} 54. Kh2 {[%emt 0:00:22]} Qf4+ {[%emt 0:00:21]} 55. Kh1 {[%emt 0:00:20]} Qf1+ {[%emt 0:00:47]} 56. Kh2 {[%emt 0:00:21]} Qf4+ {[%emt 0:00:21]} 57. Kh1 {[%emt 0:00:50]} Qf1+ {[%emt 0:00:29]} 1/2-1/2

[Event "EWIRCC 2019"]
[Site "Monte-Carlo"]
[Date "2019.11.30"]
[Round "4.2"]
[White "Solozhenkina, Elizaveta"]
[Black "Girya, Olga"]
[Result "0-1"]
[ECO "A11"]
[WhiteElo "2314"]
[BlackElo "2476"]
[Annotator "ChessBase"]
[PlyCount "84"]
[EventDate "2019.11.28"]
[EventType "swiss"]
[EventCountry "MNC"]
[SourceTitle "playchess.com"]
[Source "ChessBase"]
[SourceQuality "1"]
[TimeControl "5400+30"]

1. Nf3 {[%emt 1:15:12]} d5 {[%emt 1:15:12]} 2. g3 {[%emt 0:00:21]} c6 {[%emt 0:00:24]} 3. Bg2 {[%emt 0:00:21]} Bg4 {[%emt 0:00:21]} 4. c4 {[%emt 0:00:23]} e6 {[%emt 0:00:31]} 5. O-O {[%emt 0:00:50]} Nf6 {[%emt 0:00:21]} 6. cxd5 {[%emt 0:00:28]} Bxf3 {[%emt 0:00:22]} 7. Bxf3 {[%emt 0:00:22]} cxd5 {[%emt 0:00:21]} 8. b3 {[%emt 0:00:32]} Nc6 {[%emt 0:00:22]} 9. Bb2 {[%emt 0:00:21]} Be7 {[%emt 0:00:25]} 10. d3 {[%emt 0:00:37]} O-O {[%emt 0:00:22]} 11. Nc3 {[%emt 0:00:22]} Rc8 {[%emt 0:00:26]} 12. Bg2 {[%emt 0:00:50]} a6 {[%emt 0:01:36]} 13. Rc1 {[%emt 0:01:28]} b5 {[%emt 0:00:43]} 14. e3 {[%emt 0:01:50]} Qa5 {[%emt 0:01:58]} 15. a4 {[%emt 0:06:04]} bxa4 {[%emt 0:00:21]} 16. Nxa4 {[%emt 0:00:42]} h6 {[%emt 0:00:24]} 17. Re1 {[%emt 0:00:59]} Qb4 {[%emt 0:01:07]} 18. d4 {[%emt 0:00:57]} Nb8 {[%emt 0:04:20]} 19. Qd3 {[%emt 0:00:52]} Nbd7 {[%emt 0:01:12]} 20. Bf1 {[%emt 0:03:05]} Ne4 {[%emt 0:04:41]} 21. Qxa6 {[%emt 0:01:21]} Rb8 {[%emt 0:01:13]} 22. Bc3 {[%emt 0:02:43]} Qxb3 {[%emt 0:00:42]} 23. f3 {[%emt 0:00:32]} Ng5 {[%emt 0:01:11]} 24. Be2 {[%emt 0:00:35]} Ra8 {[%emt 0:00:25]} 25. Qc6 {[%emt 0:00:27]} Qxa4 {[%emt 0:00:39]} 26. Bb5 {[%emt 0:00:31]} Qa7 {[%emt 0:01:39]} 27. Ra1 {[%emt 0:00:32]} Qb8 {[%emt 0:00:21]} 28. Rxa8 {[%emt 0:00:32]} Qxa8 {[%emt 0:00:21]} 29. Qxd7 {[%emt 0:00:29]} Qa3 {[%emt 0:00:48]} 30. Rf1 {[%emt 0:00:30]} Qxc3 {[%emt 0:00:49]} 31. Qxe7 {[%emt 0:00:22]} Qxe3+ {[%emt 0:00:21]} 32. Kg2 {[%emt 0:00:21]} Qxd4 {[%emt 0:00:26]} 33. h4 {[%emt 0:00:28]} Nh7 {[%emt 0:00:22]} 34. Rf2 {[%emt 0:00:33]} Nf6 {[%emt 0:00:24]} 35. Ra2 {[%emt 0:00:36]} Qc3 {[%emt 0:01:14]} 36. Be2 {[%emt 0:00:38]} d4 {[%emt 0:00:41]} 37. Qd6 {[%emt 0:00:26]} Nd5 {[%emt 0:00:31]} 38. Kh3 {[%emt 0:00:31]} Qe1 {[%emt 0:00:38]} 39. Qc5 {[%emt 0:00:35]} Qh1+ {[%emt 0:00:36]} 40. Kg4 {[%emt 0:00:21]} f5+ {[%emt 0:00:36]} 41. Kh5 {[%emt 0:00:21]} Kh7 {[%emt 0:00:31]} 42. Ra7 {[%emt 0:00:23]} Nf6# {[%emt 0:00:21]} 0-1

[Event "EWIRCC 2019"]
[Site "Monte-Carlo"]
[Date "2019.11.30"]
[Round "4.3"]
[White "Daulyte-Cornette, Deimante"]
[Black "Worek, Joanna"]
[Result "1/2-1/2"]
[ECO "B23"]
[WhiteElo "2405"]
[BlackElo "2316"]
[Annotator "NA"]
[PlyCount "51"]
[EventDate "2019.11.28"]
[EventType "swiss"]
[EventCountry "MNC"]
[SourceTitle "playchess.com"]
[Source "ChessBase"]
[SourceQuality "1"]
[TimeControl "5400+30"]

1. e4 {[%emt 1:15:13]} c5 {[%emt 1:15:11]} 2. Nc3 {[%emt 0:00:26]} Nc6 {[%emt 0:00:21]} 3. Bb5 {[%emt 0:00:23]} Nd4 {[%emt 0:00:32]} 4. Nf3 {[%emt 0:00:23]} a6 {[%emt 0:00:24]} 5. Bd3 {[%emt 0:00:32]} g6 {[%emt 0:01:06]} 6. Rb1 {[%emt 0:00:38]} Bg7 {[%emt 0:01:20]} 7. b4 {[%emt 0:00:38]} cxb4 {[%emt 0:01:18]} 8. Rxb4 {[%emt 0:00:24]} Nc6 {[%emt 0:01:10]} 9. Rb1 {[%emt 0:00:35]} Nf6 {[%emt 0:00:48]} 10. Bb2 {[%emt 0:01:01]} d6 {[%emt 0:01:02]} 11. Nd5 {[%emt 0:01:35]} e5 {[%emt 0:01:23]} 12. Nxf6+ {[%emt 0:04:07]} Qxf6 {[%emt 0:00:22]} 13. Bc4 {[%emt 0:01:17]} Be6 {[%emt 0:01:18]} 14. Bxe6 {[%emt 0:02:11]} Qxe6 {[%emt 0:00:22]} 15. a3 {[%emt 0:03:29]} Qg4 {[%emt 0:01:13]} 16. O-O {[%emt 0:02:42]} Qxe4 {[%emt 0:00:36]} 17. d4 {[%emt 0:00:23]} O-O {[%emt 0:00:41]} 18. Re1 {[%emt 0:00:38]} Qf5 {[%emt 0:00:56]} 19. dxe5 {[%emt 0:01:20]} dxe5 {[%emt 0:00:25]} 20. Bc3 {[%emt 0:00:38]} Rad8 {[%emt 0:01:56]} 21. Qe2 {[%emt 0:00:34]} b5 {[%emt 0:01:53]} 22. a4 {[%emt 0:00:37]} bxa4 {[%emt 0:01:56]} 23. Qxa6 {[%emt 0:00:26]} Nd4 {[%emt 0:01:53]} 24. Bxd4 {[%emt 0:00:51]} exd4 {[%emt 0:00:21]} 25. Qxa4 {[%emt 0:00:26]} d3 {[%emt 0:00:44]} 26. cxd3 {[%emt 0:00:24]} 1/2-1/2

[Event "EWIRCC 2019"]
[Site "Monte-Carlo"]
[Date "2019.11.30"]
[Round "4.4"]
[White "Guichard, Pauline"]
[Black "Rogule, Laura"]
[Result "0-1"]
[ECO "D02"]
[WhiteElo "2407"]
[BlackElo "2293"]
[Annotator "NA"]
[PlyCount "110"]
[EventDate "2019.11.28"]
[EventType "swiss"]
[EventCountry "MNC"]
[SourceTitle "playchess.com"]
[Source "ChessBase"]
[SourceQuality "1"]
[TimeControl "5400+30"]

1. d4 {[%emt 1:15:11]} d5 {[%emt 1:15:12]} 2. Bf4 {[%emt 0:00:22]} Nf6 {[%emt 0:00:30]} 3. e3 {[%emt 0:00:22]} c5 {[%emt 0:02:02]} 4. Nf3 {[%emt 0:00:48]} Nc6 {[%emt 0:01:26]} 5. c3 {[%emt 0:00:27]} e6 {[%emt 0:01:21]} 6. Nbd2 {[%emt 0:00:46]} Bd6 {[%emt 0:01:10]} 7. Bg3 {[%emt 0:00:22]} Bxg3 {[%emt 0:01:57]} 8. hxg3 {[%emt 0:00:22]} Qd6 {[%emt 0:00:36]} 9. Bd3 {[%emt 0:01:34]} e5 {[%emt 0:00:46]} 10. dxe5 {[%emt 0:00:23]} Nxe5 {[%emt 0:00:22]} 11. Nxe5 {[%emt 0:00:41]} Qxe5 {[%emt 0:00:22]} 12. Nf3 {[%emt 0:00:51]} Qc7 {[%emt 0:01:37]} 13. Qa4+ {[%emt 0:01:33]} Bd7 {[%emt 0:00:27]} 14. Qf4 {[%emt 0:00:22]} Qxf4 {[%emt 0:01:17]} 15. gxf4 {[%emt 0:00:22]} h5 {[%emt 0:02:34]} 16. Ne5 {[%emt 0:00:27]} Ke7 {[%emt 0:01:22]} 17. O-O-O {[%emt 0:01:23]} Rad8 {[%emt 0:00:37]} 18. Rd2 {[%emt 0:01:45]} g6 {[%emt 0:00:31]} 19. Rhd1 {[%emt 0:02:14]} Be6 {[%emt 0:00:47]} 20. Bc2 {[%emt 0:00:47]} h4 {[%emt 0:00:47]} 21. a3 {[%emt 0:01:40]} Ne4 {[%emt 0:02:51]} 22. Re2 {[%emt 0:04:15]} h3 {[%emt 0:01:00]} 23. gxh3 {[%emt 0:00:26]} Rxh3 {[%emt 0:00:29]} 24. c4 {[%emt 0:01:17]} Nf6 {[%emt 0:01:18]} 25. Red2 {[%emt 0:00:28]} Rh2 {[%emt 0:00:46]} 26. b4 {[%emt 0:00:44]} cxb4 {[%emt 0:00:53]} 27. axb4 {[%emt 0:00:22]} Rc8 {[%emt 0:00:09]} 28. cxd5 {[%emt 0:02:36]} Nxd5 {[%emt 0:00:22]} 29. Kb2 {[%emt 0:00:22]} Nxb4 {[%emt 0:00:41]} 30. Bb3 {[%emt 0:00:21]} Bxb3 31. Kxb3 {[%emt 0:00:21]} Nc6 {[%emt 0:00:51]} 32. Rd7+ {[%emt 0:00:36]} Ke8 {[%emt 0:00:35]} 33. Nxc6 {[%emt 0:01:33]} Rxc6 {[%emt 0:00:22]} 34. Rxb7 {[%emt 0:00:37]} Rxf2 {[%emt 0:00:26]} 35. Rxa7 {[%emt 0:00:29]} Re6 {[%emt 0:00:40]} 36. Rd3 {[%emt 0:00:39]} Rf3 {[%emt 0:00:24]} 37. Kc4 {[%emt 0:00:29]} Rexe3 {[%emt 0:00:27]} 38. Rd4 {[%emt 0:00:31]} Kf8 {[%emt 0:00:31]} 39. Kd5 {[%emt 0:00:30]} Kg7 {[%emt 0:00:26]} 40. Raa4 {[%emt 0:00:30]} Re6 {[%emt 0:00:26]} 41. Re4 {[%emt 0:00:29]} Rf6 {[%emt 0:00:28]} 42. Rad4 {[%emt 0:00:28]} Kh6 {[%emt 0:00:36]} 43. Ke5 {[%emt 0:00:33]} Rf5+ {[%emt 0:00:25]} 44. Kd6 {[%emt 0:00:21]} Kh5 {[%emt 0:00:24]} 45. Ke7 {[%emt 0:00:28]} Kg4 {[%emt 0:00:25]} 46. Re1 {[%emt 0:00:42]} R5xf4 {[%emt 0:00:32]} 47. Rd5 {[%emt 0:00:26]} f5 {[%emt 0:00:44]} 48. Kf6 {[%emt 0:00:24]} Re4 {[%emt 0:00:38]} 49. Rg1+ {[%emt 0:00:26]} Rg3 {[%emt 0:00:23]} 50. Rf1 {[%emt 0:00:37]} f4 {[%emt 0:00:40]} 51. Rg5+ {[%emt 0:00:28]} Kh3 {[%emt 0:00:33]} 52. Ra5 {[%emt 0:00:39]} f3 {[%emt 0:00:34]} 53. Ra8 {[%emt 0:00:29]} Kg2 {[%emt 0:00:25]} 54. Raa1 {[%emt 0:00:21]} f2 {[%emt 0:00:24]} 55. Rfb1 {[%emt 0:00:29]} Rf3+ {[%emt 0:00:32]} 0-1

[Event "EWIRCC 2019"]
[Site "Monte-Carlo"]
[Date "2019.11.30"]
[Round "4.5"]
[White "Kashlinskaya, Alina"]
[Black "Muzychuk, Anna"]
[Result "1/2-1/2"]
[ECO "D80"]
[WhiteElo "2486"]
[BlackElo "2543"]
[Annotator "ChessBase"]
[PlyCount "130"]
[EventDate "2019.11.28"]
[EventType "swiss"]
[EventCountry "MNC"]
[SourceTitle "playchess.com"]
[Source "ChessBase"]
[SourceQuality "1"]
[TimeControl "5400+30"]

1. d4 {[%emt 1:15:13]} Nf6 {[%emt 1:15:11]} 2. c4 {[%emt 0:00:43]} g6 {[%emt 0:00:23]} 3. Nc3 {[%emt 0:00:44]} d5 {[%emt 0:00:21]} 4. Bg5 {[%emt 0:01:00]} Bg7 {[%emt 0:00:49]} 5. Bxf6 {[%emt 0:00:30]} Bxf6 {[%emt 0:00:24]} 6. cxd5 {[%emt 0:00:21]} c6 {[%emt 0:01:51]} 7. e4 {[%emt 0:00:33]} cxd5 {[%emt 0:00:21]} 8. exd5 {[%emt 0:03:58]} O-O {[%emt 0:00:31]} 9. Bc4 {[%emt 0:00:30]} Qb6 {[%emt 0:01:09]} 10. Nge2 {[%emt 0:00:28]} Qxb2 {[%emt 0:00:56]} 11. Rb1 {[%emt 0:00:54]} Qa3 {[%emt 0:00:23]} 12. O-O {[%emt 0:00:24]} Nd7 {[%emt 0:01:34]} 13. Bb3 {[%emt 0:02:46]} Nb6 {[%emt 0:01:25]} 14. Qd2 {[%emt 0:01:16]} Qa5 {[%emt 0:01:26]} 15. Ng3 {[%emt 0:00:34]} Rd8 {[%emt 0:01:33]} 16. Nge4 {[%emt 0:00:58]} Bf5 {[%emt 0:00:43]} 17. Nxf6+ {[%emt 0:00:52]} exf6 {[%emt 0:00:21]} 18. Rb2 {[%emt 0:01:46]} Rac8 {[%emt 0:00:40]} 19. Rc1 {[%emt 0:02:05]} Rc7 {[%emt 0:00:37]} 20. h3 {[%emt 0:00:39]} Rdc8 {[%emt 0:03:57]} 21. g4 {[%emt 0:00:23]} Bd7 {[%emt 0:00:36]} 22. Rbc2 {[%emt 0:00:27]} Nc4 {[%emt 0:00:38]} 23. Qf4 {[%emt 0:01:11]} f5 {[%emt 0:01:12]} 24. Ne2 {[%emt 0:00:51]} Qxd5 {[%emt 0:01:13]} 25. Nc3 {[%emt 0:02:11]} Qd6 {[%emt 0:00:28]} 26. Ne2 {[%emt 0:00:52]} Qd5 {[%emt 0:01:30]} 27. Nc3 {[%emt 0:00:21]} Qa5 {[%emt 0:00:44]} 28. Ne2 {[%emt 0:00:21]} b5 {[%emt 0:00:45]} 29. Ng3 {[%emt 0:00:24]} Rc6 {[%emt 0:01:32]} 30. gxf5 {[%emt 0:00:31]} Qc7 {[%emt 0:00:27]} 31. Qg5 {[%emt 0:00:44]} Re8 {[%emt 0:01:01]} 32. d5 {[%emt 0:00:39]} Ra6 {[%emt 0:00:21]} 33. Bxc4 {[%emt 0:00:26]} bxc4 {[%emt 0:00:21]} 34. Rxc4 {[%emt 0:00:22]} Qd8 {[%emt 0:00:36]} 35. Qxd8 Rxd8 {[%emt 0:00:20]} 36. R1c2 {[%emt 0:01:33]} Bxf5 {[%emt 0:00:37]} 37. Nxf5 {[%emt 0:00:21]} gxf5 {[%emt 0:00:21]} 38. Rc5 {[%emt 0:00:25]} Ra3 {[%emt 0:00:30]} 39. Kg2 {[%emt 0:00:29]} Rd3 {[%emt 0:00:26]} 40. Ra5 {[%emt 0:00:43]} Rd7 {[%emt 0:00:33]} 41. Rc8+ {[%emt 0:00:36]} Kg7 {[%emt 0:00:21]} 42. Ra8 {[%emt 0:00:21]} R3xd5 {[%emt 0:00:35]} 43. Rxd5 {[%emt 0:00:22]} Rxd5 {[%emt 0:00:20]} 44. Rxa7 {[%emt 0:00:22]} Rd2 {[%emt 0:00:24]} 45. Ra6 {[%emt 0:00:27]} Rd3 {[%emt 0:00:31]} 46. a4 {[%emt 0:00:42]} Ra3 {[%emt 0:00:21]} 47. h4 {[%emt 0:00:37]} f6 {[%emt 0:00:38]} 48. Ra7+ {[%emt 0:00:33]} Kg6 {[%emt 0:00:22]} 49. a5 {[%emt 0:00:41]} h6 {[%emt 0:00:29]} 50. a6 {[%emt 0:00:27]} Kh5 {[%emt 0:02:13]} 51. Ra8 {[%emt 0:00:37]} Kxh4 {[%emt 0:00:00]} 52. a7 {[%emt 0:00:22]} h5 {[%emt 0:00:00]} 53. Rf8 {[%emt 0:00:41]} Rxa7 {[%emt 0:00:00]} 54. Rxf6 {[%emt 0:00:21]} Kg5 {[%emt 0:00:03]} 55. Rf8 {[%emt 0:00:20]} Kf4 {[%emt 0:00:23]} 56. Rh8 {[%emt 0:00:22]} Rg7+ {[%emt 0:00:23]} 57. Kf1 {[%emt 0:00:33]} Kg4 {[%emt 0:00:21]} 58. Kg2 {[%emt 0:00:36]} Rg5 {[%emt 0:00:40]} 59. Ra8 {[%emt 0:00:34]} Rg6 {[%emt 0:01:00]} 60. Ra4+ {[%emt 0:00:23]} f4 {[%emt 0:00:26]} 61. Rb4 {[%emt 0:00:27]} h4 {[%emt 0:00:52]} 62. Rb3 {[%emt 0:00:21]} Re6 {[%emt 0:01:03]} 63. f3+ {[%emt 0:00:43]} Kf5 {[%emt 0:00:22]} 64. Rb5+ {[%emt 0:00:21]} Re5 {[%emt 0:00:42]} 65. Rxe5+ {[%emt 0:00:44]} Kxe5 {[%emt 0:00:21]} 1/2-1/2

[Event "EWIRCC 2019"]
[Site "Monte-Carlo"]
[Date "2019.11.30"]
[Round "4.6"]
[White "Mkrtchian, Lilit"]
[Black "Muzychuk, Mariya"]
[Result "0-1"]
[ECO "D48"]
[WhiteElo "2402"]
[BlackElo "2552"]
[Annotator "ChessBase"]
[PlyCount "108"]
[EventDate "2019.11.28"]
[EventType "swiss"]
[EventCountry "MNC"]
[SourceTitle "playchess.com"]
[Source "ChessBase"]
[SourceQuality "1"]
[TimeControl "5400+30"]

1. c4 {[%emt 1:15:12]} c6 {[%emt 1:15:21]} 2. Nf3 {[%emt 0:00:29]} d5 {[%emt 0:00:20]} 3. e3 {[%emt 0:00:26]} Nf6 {[%emt 0:00:24]} 4. Nc3 {[%emt 0:00:22]} e6 {[%emt 0:00:30]} 5. d4 {[%emt 0:00:24]} Nbd7 {[%emt 0:00:21]} 6. Bd3 {[%emt 0:00:26]} dxc4 {[%emt 0:00:23]} 7. Bxc4 {[%emt 0:16:11]} b5 8. Bd3 {[%emt 0:00:00]} a6 {[%emt 0:00:56]} 9. a4 {[%emt 0:00:00]} b4 {[%emt 0:00:33]} 10. Ne4 {[%emt 0:00:00]} c5 {[%emt 0:01:35]} 11. dxc5 {[%emt 0:00:00]} Nxc5 {[%emt 0:00:32]} 12. Nxc5 {[%emt 0:00:00]} Bxc5 {[%emt 0:00:21]} 13. Qe2 {[%emt 0:00:00]} Bb7 {[%emt 0:00:37]} 14. e4 {[%emt 0:00:00]} Ng4 {[%emt 0:03:00]} 15. O-O {[%emt 0:00:00]} Qc7 {[%emt 0:05:50]} 16. e5 {[%emt 0:00:00]} Rd8 {[%emt 0:00:45]} 17. Bf4 {[%emt 0:00:00]} Bxf3 {[%emt 0:00:47]} 18. gxf3 {[%emt 0:00:00]} Nf6 {[%emt 0:02:40]} 19. Bxa6 {[%emt 0:01:46]} O-O {[%emt 0:01:19]} 20. Rac1 {[%emt 0:01:33]} Nd5 {[%emt 0:00:21]} 21. Bg5 {[%emt 0:00:29]} Ra8 {[%emt 0:00:21]} 22. Bc4 {[%emt 0:01:18]} Qb6 {[%emt 0:00:42]} 23. Bb3 {[%emt 0:01:29]} h6 {[%emt 0:00:50]} 24. Bd2 {[%emt 0:00:21]} Bd4 {[%emt 0:00:25]} 25. Rc2 {[%emt 0:00:49]} Rfd8 {[%emt 0:00:39]} 26. Qe4 {[%emt 0:00:26]} Ne7 {[%emt 0:00:42]} 27. Bc1 {[%emt 0:00:36]} Ng6 {[%emt 0:00:44]} 28. f4 {[%emt 0:00:23]} Nh4 {[%emt 0:00:23]} 29. Kh1 {[%emt 0:00:28]} Bc5 {[%emt 0:00:41]} 30. Be3 {[%emt 0:00:40]} Bxe3 {[%emt 0:00:34]} 31. fxe3 {[%emt 0:00:22]} Rac8 {[%emt 0:00:38]} 32. Rxc8 {[%emt 0:00:42]} Rxc8 {[%emt 0:00:21]} 33. Qd4 {[%emt 0:01:21]} Qa6 {[%emt 0:00:57]} 34. Rd1 {[%emt 0:00:35]} Qe2 {[%emt 0:00:26]} 35. Qd2 {[%emt 0:00:22]} Qf3+ {[%emt 0:00:38]} 36. Kg1 {[%emt 0:00:21]} Kh7 {[%emt 0:01:12]} 37. Bc2+ {[%emt 0:00:23]} g6 {[%emt 0:00:25]} 38. Bd3 {[%emt 0:00:32]} Rd8 {[%emt 0:00:26]} 39. Qc2 {[%emt 0:00:50]} Qxe3+ {[%emt 0:00:25]} 40. Qf2 {[%emt 0:00:22]} Rxd3 {[%emt 0:00:58]} 41. Rxd3 {[%emt 0:00:21]} Nf3+ {[%emt 0:00:36]} 42. Kg2 {[%emt 0:00:25]} Ne1+ {[%emt 0:00:23]} 43. Kf1 {[%emt 0:00:34]} Qxf2+ {[%emt 0:00:22]} 44. Kxf2 {[%emt 0:00:21]} Nxd3+ {[%emt 0:00:21]} 45. Ke2 {[%emt 0:00:29]} Nxb2 {[%emt 0:01:46]} 46. a5 {[%emt 0:00:21]} Nc4 {[%emt 0:00:00]} 47. a6 {[%emt 0:00:21]} g5 {[%emt 0:00:19]} 48. fxg5 {[%emt 0:00:25]} hxg5 {[%emt 0:00:21]} 49. a7 {[%emt 0:00:26]} Nb6 {[%emt 0:00:21]} 50. Kd3 {[%emt 0:00:26]} Kg6 {[%emt 0:00:29]} 51. Kc2 {[%emt 0:00:21]} Kf5 {[%emt 0:00:24]} 52. Kb3 {[%emt 0:00:21]} Kxe5 {[%emt 0:00:24]} 53. Kxb4 {[%emt 0:00:21]} Kd6 {[%emt 0:00:21]} 54. Kb5 {[%emt 0:00:24]} Na8 {[%emt 0:00:26]} 0-1

[Event "EWIRCC 2019"]
[Site "Monte-Carlo"]
[Date "2019.11.30"]
[Round "4.7"]
[White "Gaponenko, Inna"]
[Black "Gunina, Valentina"]
[Result "1/2-1/2"]
[ECO "C67"]
[WhiteElo "2427"]
[BlackElo "2509"]
[Annotator "ChessBase"]
[PlyCount "111"]
[EventDate "2019.11.28"]
[EventType "swiss"]
[EventCountry "MNC"]
[SourceTitle "playchess.com"]
[Source "ChessBase"]
[SourceQuality "1"]
[TimeControl "5400+30"]

1. e4 {[%emt 1:15:11]} e5 {[%emt 1:15:14]} 2. Nf3 {[%emt 0:00:22]} Nc6 {[%emt 0:00:21]} 3. Bb5 {[%emt 0:00:21]} Nf6 {[%emt 0:00:25]} 4. O-O {[%emt 0:00:22]} Nxe4 {[%emt 0:00:25]} 5. d4 {[%emt 0:00:21]} Nd6 {[%emt 0:00:22]} 6. dxe5 {[%emt 0:00:21]} Nxb5 {[%emt 0:00:22]} 7. a4 {[%emt 0:00:21]} d6 {[%emt 0:01:59]} 8. axb5 {[%emt 0:00:23]} Nxe5 {[%emt 0:00:22]} 9. Re1 {[%emt 0:00:35]} Be7 {[%emt 0:02:11]} 10. Nxe5 {[%emt 0:00:22]} dxe5 {[%emt 0:00:22]} 11. Qxd8+ {[%emt 0:00:22]} Bxd8 {[%emt 0:00:35]} 12. Rxe5+ {[%emt 0:00:21]} Be6 {[%emt 0:00:22]} 13. Bg5 {[%emt 0:03:30]} Bxg5 {[%emt 0:01:20]} 14. Rxg5 {[%emt 0:00:21]} O-O-O {[%emt 0:00:22]} 15. Nc3 {[%emt 0:00:32]} Rd2 {[%emt 0:00:25]} 16. Rc1 {[%emt 0:05:53]} g6 {[%emt 0:00:30]} 17. Ne4 {[%emt 0:00:22]} Rd4 {[%emt 0:00:27]} 18. Re5 {[%emt 0:02:36]} Rhd8 {[%emt 0:00:22]} 19. Nc3 {[%emt 0:02:23]} Rd2 {[%emt 0:00:49]} 20. f3 {[%emt 0:02:22]} Bf5 {[%emt 0:00:43]} 21. Ne4 {[%emt 0:00:46]} R2d5 {[%emt 0:00:37]} 22. Rxd5 {[%emt 0:00:38]} Rxd5 {[%emt 0:00:21]} 23. c4 {[%emt 0:01:26]} Rd4 {[%emt 0:00:24]} 24. Ng5 {[%emt 0:00:47]} Rd2 {[%emt 0:02:08]} 25. Nxh7 {[%emt 0:01:11]} Rxb2 {[%emt 0:02:16]} 26. Nf6 {[%emt 0:00:21]} a5 {[%emt 0:00:59]} 27. bxa6 {[%emt 0:00:22]} bxa6 {[%emt 0:00:21]} 28. Nd5 {[%emt 0:00:32]} Kb7 {[%emt 0:00:48]} 29. h4 {[%emt 0:00:31]} a5 {[%emt 0:00:34]} 30. Ra1 {[%emt 0:00:40]} c6 {[%emt 0:00:22]} 31. Nc3 {[%emt 0:00:36]} Ka6 {[%emt 0:01:08]} 32. g4 {[%emt 0:00:24]} Bd3 {[%emt 0:00:23]} 33. Na4 {[%emt 0:00:25]} Rb1+ {[%emt 0:00:42]} 34. Rxb1 {[%emt 0:00:21]} Bxb1 {[%emt 0:00:21]} 35. Nc3 {[%emt 0:00:32]} Bc2 {[%emt 0:00:46]} 36. Kf2 {[%emt 0:00:22]} a4 {[%emt 0:03:11]} 37. Ke3 {[%emt 0:00:21]} a3 {[%emt 0:00:21]} 38. Kd2 {[%emt 0:00:21]} Bb1 {[%emt 0:00:52]} 39. Kc1 {[%emt 0:00:34]} Bd3 {[%emt 0:00:29]} 40. Ne4 {[%emt 0:00:21]} Be2 {[%emt 0:02:29]} 41. h5 {[%emt 0:00:39]} gxh5 {[%emt 0:00:33]} 42. gxh5 {[%emt 0:00:21]} Bxf3 {[%emt 0:00:22]} 43. Nc5+ {[%emt 0:00:21]} Kb6 {[%emt 0:00:35]} 44. h6 {[%emt 0:00:21]} Kxc5 {[%emt 0:00:35]} 45. h7 {[%emt 0:00:22]} Kxc4 {[%emt 0:00:22]} 46. h8=Q {[%emt 0:00:21]} Bd5 {[%emt 0:00:34]} 47. Qa8 {[%emt 0:01:44]} Kb3 {[%emt 0:00:57]} 48. Qb8+ {[%emt 0:00:26]} Kc4 {[%emt 0:00:29]} 49. Qa7 {[%emt 0:00:27]} Kb4 {[%emt 0:01:04]} 50. Qb6+ {[%emt 0:00:24]} Ka4 {[%emt 0:00:57]} 51. Qa7+ {[%emt 0:00:40]} Kb4 {[%emt 0:00:21]} 52. Qb6+ {[%emt 0:00:36]} Ka4 {[%emt 0:00:23]} 53. Qa7+ {[%emt 0:00:39]} Kb4 {[%emt 0:00:22]} 54. Qb6+ {[%emt 0:00:30]} Ka4 {[%emt 0:00:33]} 55. Qa7+ {[%emt 0:00:26]} Kb4 {[%emt 0:00:20]} 56. Qb6+ {[%emt 0:00:30]} 1/2-1/2